[Event "Titled Tuesday Blitz November 08 Early 2022"]
[White "Garic, Radomir"]
[Black "Schmakel, Sam"]
[WhiteFideId "920959"]
[BlackFideId "2039311"]
[WhiteElo "2227"]
[BlackElo "2356"]
[Result "0-1"]
[Round "01"]
[TimeControl "180+1"]
[Date "2022.11.09"]
[WhiteClock "0:00:08"]
[BlackClock "0:00:03"]

1. e4 {[%clk 0:03:00]}  c5 {[%clk 0:02:59]} 2. Nf3 {[%clk 0:02:59]}  e6 {[%clk 0:02:59]} 3. c3 {[%clk 0:02:59]}  d5 {[%clk 0:02:58]} 4. exd5 {[%clk 0:02:59]}  Qxd5 {[%clk 0:02:58]} 5. d4 {[%clk 0:02:59]}  Nf6 {[%clk 0:02:59]} 6. Be3 {[%clk 0:03:00]}  cxd4 {[%clk 0:02:56]} 7. cxd4 {[%clk 0:03:01]}  Nc6 {[%clk 0:02:56]} 8. Nc3 {[%clk 0:03:01]}  Bb4 {[%clk 0:02:56]} 9. Be2 {[%clk 0:03:00]}  O-O {[%clk 0:02:56]} 10. O-O {[%clk 0:03:00]}  Qd6 {[%clk 0:02:56]} 11. Nb5 {[%clk 0:02:55]}  Qe7 {[%clk 0:02:52]} 12. a3 {[%clk 0:02:53]}  Ba5 {[%clk 0:02:52]} 13. Bf4 {[%clk 0:02:45]}  Rd8 {[%clk 0:02:48]} 14. Ne5 {[%clk 0:02:32]}  Bb6 {[%clk 0:02:38]} 15. Nxc6 {[%clk 0:01:56]}  bxc6 {[%clk 0:02:39]} 16. Nc3 {[%clk 0:01:53]}  Rxd4 {[%clk 0:02:18]} 17. Qc1 {[%clk 0:01:53]}  e5 {[%clk 0:02:19]} 18. Be3 {[%clk 0:01:43]}  Rd8 {[%clk 0:02:18]} 19. Bg5 {[%clk 0:01:37]}  h6 {[%clk 0:02:12]} 20. Bh4 {[%clk 0:01:35]}  Bf5 {[%clk 0:02:10]} 21. Re1 {[%clk 0:01:33]}  e4 {[%clk 0:01:27]} 22. Na4 {[%clk 0:01:15]}  Bd4 {[%clk 0:01:21]} 23. Qxc6 {[%clk 0:01:09]}  Rac8 {[%clk 0:01:08]} 24. Qb5 {[%clk 0:01:08]}  Bd7 {[%clk 0:01:00]} 25. Qa5 {[%clk 0:01:09]}  e3 {[%clk 0:00:51]} 26. fxe3 {[%clk 0:01:04]}  Qxe3+ {[%clk 0:00:18]} 27. Kh1 {[%clk 0:01:04]}  Bxa4 {[%clk 0:00:18]} 28. Qxa4 {[%clk 0:00:59]}  Bxb2 {[%clk 0:00:18]} 29. Rab1 {[%clk 0:00:52]}  Bc3 {[%clk 0:00:18]} 30. Qb3 {[%clk 0:00:40]}  Qe5 {[%clk 0:00:09]} 31. Bxf6 {[%clk 0:00:37]}  gxf6 {[%clk 0:00:08]} 32. Ba6 {[%clk 0:00:30]}  Bxe1 {[%clk 0:00:08]} 33. Bxc8 {[%clk 0:00:31]}  Rxc8 {[%clk 0:00:08]} 34. Qh3 {[%clk 0:00:26]}  Rd8 {[%clk 0:00:07]} 35. Qxh6 {[%clk 0:00:23]}  Bd2 {[%clk 0:00:07]} 36. Qh4 {[%clk 0:00:19]}  Bg5 {[%clk 0:00:07]} 37. Qg4 {[%clk 0:00:18]}  Qd4 {[%clk 0:00:07]} 38. Qh5 {[%clk 0:00:16]}  Qd3 {[%clk 0:00:06]} 39. Rg1 {[%clk 0:00:15]}  Qxa3 {[%clk 0:00:06]} 40. h4 {[%clk 0:00:15]}  Be3 {[%clk 0:00:05]} 41. Qg4+ {[%clk 0:00:15]}  Kf8 {[%clk 0:00:06]} 42. Re1 {[%clk 0:00:15]}  Qc3 {[%clk 0:00:06]} 43. Rf1 {[%clk 0:00:15]}  Qe5 {[%clk 0:00:05]} 44. Qf3 {[%clk 0:00:15]}  a5 {[%clk 0:00:05]} 45. Re1 {[%clk 0:00:13]}  Re8 {[%clk 0:00:04]} 46. Qc6 {[%clk 0:00:12]}  Qg3 {[%clk 0:00:04]} 47. Qd6+ {[%clk 0:00:08]}  Qxd6 {[%clk 0:00:03]} 0-1


[Site "https://www.chess.com"]

[Event "Titled Tuesday Blitz November 08 Early 2022"]
[White "Garrido, Denis"]
[Black "Bodnaruk, Anastasia"]
[WhiteFideId "601217"]
[BlackFideId "4181751"]
[WhiteElo "2191"]
[BlackElo "2319"]
[Result "0-1"]
[Round "01"]
[TimeControl "180+1"]
[Date "2022.11.09"]
[WhiteClock "0:00:47"]
[BlackClock "0:00:23"]

1. e4 {[%clk 0:02:41]}  c5 {[%clk 0:02:59]} 2. Nf3 {[%clk 0:02:41]}  d6 {[%clk 0:02:59]} 3. Bb5+ {[%clk 0:02:41]}  Bd7 {[%clk 0:02:59]} 4. Bxd7+ {[%clk 0:02:41]}  Qxd7 {[%clk 0:02:58]} 5. O-O {[%clk 0:02:42]}  Nc6 {[%clk 0:02:58]} 6. c3 {[%clk 0:02:42]}  Nf6 {[%clk 0:02:57]} 7. Qe2 {[%clk 0:02:41]}  e6 {[%clk 0:02:55]} 8. d4 {[%clk 0:02:42]}  cxd4 {[%clk 0:02:55]} 9. cxd4 {[%clk 0:02:43]}  d5 {[%clk 0:02:55]} 10. e5 {[%clk 0:02:43]}  Ne4 {[%clk 0:02:55]} 11. Nbd2 {[%clk 0:02:44]}  Nxd2 {[%clk 0:02:49]} 12. Bxd2 {[%clk 0:02:45]}  Be7 {[%clk 0:02:49]} 13. g3 {[%clk 0:02:43]}  O-O {[%clk 0:02:48]} 14. Kg2 {[%clk 0:02:43]}  Rae8 {[%clk 0:02:41]} 15. h4 {[%clk 0:02:43]}  f6 {[%clk 0:02:39]} 16. exf6 {[%clk 0:02:43]}  Bxf6 {[%clk 0:02:28]} 17. Bc3 {[%clk 0:02:43]}  Bd8 {[%clk 0:02:16]} 18. Qd3 {[%clk 0:02:29]}  Rf5 {[%clk 0:02:08]} 19. Rae1 {[%clk 0:02:27]}  Ref8 {[%clk 0:02:07]} 20. Re3 {[%clk 0:02:27]}  Qf7 {[%clk 0:02:02]} 21. Rfe1 {[%clk 0:02:19]}  h6 {[%clk 0:01:50]} 22. R1e2 {[%clk 0:01:47]}  g5 {[%clk 0:01:42]} 23. hxg5 {[%clk 0:01:47]}  hxg5 {[%clk 0:01:41]} 24. Be1 {[%clk 0:01:46]}  Rxf3 {[%clk 0:01:31]} 25. Rxf3 {[%clk 0:01:43]}  Qxf3+ {[%clk 0:01:31]} 26. Qxf3 {[%clk 0:01:43]}  Rxf3 {[%clk 0:01:31]} 27. Kxf3 {[%clk 0:01:44]}  Nxd4+ {[%clk 0:01:32]} 28. Ke3 {[%clk 0:01:44]}  Nxe2 {[%clk 0:01:32]} 29. Kxe2 {[%clk 0:01:45]}  Bf6 {[%clk 0:01:29]} 30. b3 {[%clk 0:01:44]}  e5 {[%clk 0:01:27]} 31. Bb4 {[%clk 0:01:43]}  Kf7 {[%clk 0:01:27]} 32. g4 {[%clk 0:01:42]}  e4 {[%clk 0:01:21]} 33. f3 {[%clk 0:01:34]}  exf3+ {[%clk 0:01:19]} 34. Kxf3 {[%clk 0:01:35]}  Ke6 {[%clk 0:01:18]} 35. Ke3 {[%clk 0:01:34]}  Be7 {[%clk 0:01:10]} 36. Bc3 {[%clk 0:01:31]}  Ba3 {[%clk 0:01:05]} 37. Bd4 {[%clk 0:01:28]}  Bc1+ {[%clk 0:01:03]} 38. Kd3 {[%clk 0:01:28]}  a6 {[%clk 0:00:56]} 39. a4 {[%clk 0:01:27]}  Bf4 {[%clk 0:00:51]} 40. Ke2 {[%clk 0:01:24]}  Be5 {[%clk 0:00:51]} 41. Be3 {[%clk 0:01:22]}  Bf6 {[%clk 0:00:51]} 42. Kd3 {[%clk 0:01:22]}  Kd6 {[%clk 0:00:47]} 43. Bd2 {[%clk 0:01:16]}  Bd8 {[%clk 0:00:45]} 44. Bb4+ {[%clk 0:01:15]}  Ke5 {[%clk 0:00:45]} 45. Ke3 {[%clk 0:01:10]}  Bb6+ {[%clk 0:00:28]} 46. Kf3 {[%clk 0:01:06]}  Kd4 {[%clk 0:00:27]} 47. Bd2 {[%clk 0:01:03]}  Bd8 {[%clk 0:00:26]} 48. Ke2 {[%clk 0:01:03]}  Ke4 {[%clk 0:00:26]} 49. Bc1 {[%clk 0:00:56]}  d4 {[%clk 0:00:26]} 50. Bb2 {[%clk 0:00:52]}  d3+ {[%clk 0:00:27]} 51. Kd2 {[%clk 0:00:52]}  Ba5+ {[%clk 0:00:26]} 52. Kd1 {[%clk 0:00:52]}  Kf4 {[%clk 0:00:26]} 53. Bc1+ {[%clk 0:00:48]}  Kxg4 {[%clk 0:00:26]} 54. Be3 {[%clk 0:00:47]}  Kf5 {[%clk 0:00:23]} 0-1


[Site "https://www.chess.com"]

[Event "Titled Tuesday Blitz November 08 Early 2022"]
[White "Gholami Orimi, Mahdi"]
[Black "Urbina Perez, Juan Antonio"]
[WhiteFideId "12558486"]
[BlackFideId "2217368"]
[WhiteElo "2330"]
[BlackElo "2197"]
[Result "0-1"]
[Round "01"]
[TimeControl "180+1"]
[Date "2022.11.09"]
[WhiteClock "0:00:03"]
[BlackClock "0:00:20"]

1. d4 {[%clk 0:02:54]}  d5 {[%clk 0:02:59]} 2. c4 {[%clk 0:02:52]}  c6 {[%clk 0:02:59]} 3. Nf3 {[%clk 0:02:46]}  Nf6 {[%clk 0:02:59]} 4. e3 {[%clk 0:02:46]}  Bg4 {[%clk 0:02:57]} 5. h3 {[%clk 0:02:42]}  Bxf3 {[%clk 0:02:57]} 6. gxf3 {[%clk 0:02:34]}  e6 {[%clk 0:02:58]} 7. Nc3 {[%clk 0:02:31]}  Nbd7 {[%clk 0:02:57]} 8. f4 {[%clk 0:02:30]}  c5 {[%clk 0:02:49]} 9. cxd5 {[%clk 0:02:28]}  Nxd5 {[%clk 0:02:41]} 10. Nxd5 {[%clk 0:02:23]}  exd5 {[%clk 0:02:42]} 11. Bg2 {[%clk 0:02:24]}  Nf6 {[%clk 0:02:37]} 12. O-O {[%clk 0:02:19]}  Bd6 {[%clk 0:02:33]} 13. dxc5 {[%clk 0:02:00]}  Bxc5 {[%clk 0:02:34]} 14. Qb3 {[%clk 0:01:52]}  Qb6 {[%clk 0:02:28]} 15. Rd1 {[%clk 0:01:22]}  O-O {[%clk 0:02:24]} 16. Bxd5 {[%clk 0:01:18]}  Nxd5 {[%clk 0:02:25]} 17. Rxd5 {[%clk 0:01:16]}  Rad8 {[%clk 0:02:21]} 18. Rxd8 {[%clk 0:00:46]}  Rxd8 {[%clk 0:02:20]} 19. Qxb6 {[%clk 0:00:32]}  Bxb6 {[%clk 0:02:21]} 20. b3 {[%clk 0:00:32]}  Rd1+ {[%clk 0:01:58]} 21. Kg2 {[%clk 0:00:31]}  f6 {[%clk 0:01:59]} 22. Kf3 {[%clk 0:00:29]}  Bc5 {[%clk 0:01:53]} 23. Bb2 {[%clk 0:00:29]}  Rd2 {[%clk 0:01:52]} 24. Bc3 {[%clk 0:00:28]}  Rc2 {[%clk 0:01:50]} 25. Be1 {[%clk 0:00:26]}  Kf7 {[%clk 0:01:46]} 26. Ke4 {[%clk 0:00:24]}  Ke6 {[%clk 0:01:44]} 27. Kd3 {[%clk 0:00:25]}  Rb2 {[%clk 0:01:39]} 28. Kc3 {[%clk 0:00:24]}  Re2 {[%clk 0:01:37]} 29. b4 {[%clk 0:00:20]}  Bd6 {[%clk 0:01:33]} 30. a4 {[%clk 0:00:19]}  a6 {[%clk 0:01:29]} 31. Rd1 {[%clk 0:00:18]}  b5 {[%clk 0:01:25]} 32. axb5 {[%clk 0:00:18]}  axb5 {[%clk 0:01:26]} 33. Ra1 {[%clk 0:00:19]}  h5 {[%clk 0:01:24]} 34. Rb1 {[%clk 0:00:13]}  Ra2 {[%clk 0:01:20]} 35. Rb2 {[%clk 0:00:10]}  Ra1 {[%clk 0:01:15]} 36. Kd2 {[%clk 0:00:10]}  Ra4 {[%clk 0:01:12]} 37. Ke2 {[%clk 0:00:10]}  Ra1 {[%clk 0:01:09]} 38. Rc2 {[%clk 0:00:05]}  Kd5 {[%clk 0:01:03]} 39. Rd2+ {[%clk 0:00:05]}  Ke6 {[%clk 0:01:03]} 40. Rc2 {[%clk 0:00:06]}  Kd5 {[%clk 0:01:03]} 41. Bd2 {[%clk 0:00:06]}  Rh1 {[%clk 0:01:02]} 42. f3 {[%clk 0:00:05]}  Rxh3 {[%clk 0:00:59]} 43. e4+ {[%clk 0:00:06]}  Ke6 {[%clk 0:00:58]} 44. Rc6 {[%clk 0:00:07]}  Kd7 {[%clk 0:00:59]} 45. Rb6 {[%clk 0:00:07]}  Rh2+ {[%clk 0:00:54]} 46. Kd3 {[%clk 0:00:06]}  h4 {[%clk 0:00:54]} 47. Rxb5 {[%clk 0:00:06]}  h3 {[%clk 0:00:54]} 48. Rh5 {[%clk 0:00:07]}  Rh1 {[%clk 0:00:53]} 49. b5 {[%clk 0:00:06]}  Ke6 {[%clk 0:00:47]} 50. f5+ {[%clk 0:00:04]}  Kf7 {[%clk 0:00:46]} 51. f4 {[%clk 0:00:05]}  Rb1 {[%clk 0:00:38]} 52. Rxh3 {[%clk 0:00:05]}  Rxb5 {[%clk 0:00:35]} 53. Kc4 {[%clk 0:00:05]}  Rb2 {[%clk 0:00:31]} 54. Rd3 {[%clk 0:00:06]}  Be7 {[%clk 0:00:27]} 55. e5 {[%clk 0:00:04]}  fxe5 {[%clk 0:00:27]} 56. fxe5 {[%clk 0:00:05]}  Rc2+ {[%clk 0:00:25]} 57. Kd5 {[%clk 0:00:06]}  Rc5+ {[%clk 0:00:24]} 58. Ke4 {[%clk 0:00:06]}  g6 {[%clk 0:00:23]} 59. e6+ {[%clk 0:00:03]}  Kf6 {[%clk 0:00:23]} 60. Bc3+ {[%clk 0:00:03]}  Kg5 {[%clk 0:00:20]} 0-1


[Site "https://www.chess.com"]

[Event "Titled Tuesday Blitz November 08 Early 2022"]
[White "Goldin, Alexander"]
[Black "Lakshmi C"]
[WhiteFideId "2019540"]
[BlackFideId "25035347"]
[WhiteElo "2597"]
[BlackElo "1865"]
[Result "1-0"]
[Round "01"]
[TimeControl "180+1"]
[Date "2022.11.09"]
[WhiteClock "0:00:39"]
[BlackClock "0:00:01"]

1. d4 {[%clk 0:02:58]}  Nf6 {[%clk 0:02:55]} 2. c4 {[%clk 0:02:57]}  e6 {[%clk 0:02:54]} 3. Nf3 {[%clk 0:02:57]}  b6 {[%clk 0:02:53]} 4. a3 {[%clk 0:02:57]}  Bb7 {[%clk 0:02:52]} 5. Nc3 {[%clk 0:02:57]}  Be7 {[%clk 0:02:51]} 6. d5 {[%clk 0:02:54]}  Na6 {[%clk 0:02:46]} 7. b4 {[%clk 0:02:39]}  Qb8 {[%clk 0:02:23]} 8. e4 {[%clk 0:02:37]}  d6 {[%clk 0:01:50]} 9. Bd3 {[%clk 0:02:26]}  O-O {[%clk 0:01:46]} 10. O-O {[%clk 0:02:26]}  Qc8 {[%clk 0:01:39]} 11. h3 {[%clk 0:02:18]}  Nb8 {[%clk 0:01:36]} 12. Bb2 {[%clk 0:02:08]}  c6 {[%clk 0:01:35]} 13. dxe6 {[%clk 0:01:58]}  Qxe6 {[%clk 0:01:34]} 14. Nd4 {[%clk 0:01:58]}  Qd7 {[%clk 0:01:30]} 15. Nf5 {[%clk 0:01:58]}  Rd8 {[%clk 0:01:28]} 16. Nxe7+ {[%clk 0:01:57]}  Qxe7 {[%clk 0:01:28]} 17. f4 {[%clk 0:01:58]}  Na6 {[%clk 0:01:27]} 18. Qd2 {[%clk 0:01:54]}  Nc7 {[%clk 0:01:26]} 19. Rae1 {[%clk 0:01:54]}  Qd7 {[%clk 0:00:58]} 20. Ne2 {[%clk 0:01:49]}  Nfe8 {[%clk 0:00:58]} 21. Ng3 {[%clk 0:01:48]}  d5 {[%clk 0:00:57]} 22. cxd5 {[%clk 0:01:47]}  cxd5 {[%clk 0:00:57]} 23. e5 {[%clk 0:01:48]}  d4 {[%clk 0:00:51]} 24. f5 {[%clk 0:01:31]}  Nb5 {[%clk 0:00:25]} 25. e6 {[%clk 0:01:22]}  Qc6 {[%clk 0:00:21]} 26. Be4 {[%clk 0:01:19]}  Qc7 {[%clk 0:00:20]} 27. Bxb7 {[%clk 0:01:15]}  Qxb7 {[%clk 0:00:19]} 28. Qd3 {[%clk 0:01:07]}  Ned6 {[%clk 0:00:10]} 29. a4 {[%clk 0:01:03]}  Nc7 {[%clk 0:00:10]} 30. e7 {[%clk 0:00:57]}  Rd7 {[%clk 0:00:08]} 31. Qxd4 {[%clk 0:00:56]}  Nde8 {[%clk 0:00:07]} 32. Qxd7 {[%clk 0:00:55]}  Qa6 {[%clk 0:00:04]} 33. Nh5 {[%clk 0:00:46]}  Qc4 {[%clk 0:00:01]} 34. Rc1 {[%clk 0:00:44]}  Qxb4 {[%clk 0:00:01]} 35. Bxg7 {[%clk 0:00:41]}  Nxg7 {[%clk 0:00:01]} 36. Nf6+ {[%clk 0:00:40]}  Kh8 {[%clk 0:00:01]} 37. Rxc7 {[%clk 0:00:39]} 1-0


[Site "https://www.chess.com"]

[Event "Titled Tuesday Blitz November 08 Early 2022"]
[White "Golubev, Mikhail"]
[Black "Khaliun, Batnasan"]
[WhiteFideId "14100983"]
[BlackFideId "4906276"]
[WhiteElo "2374"]
[BlackElo "1752"]
[Result "1-0"]
[Round "01"]
[TimeControl "180+1"]
[Date "2022.11.09"]
[WhiteClock "0:01:19"]
[BlackClock "0:00:14"]

1. e4 {[%clk 0:03:00]}  c5 {[%clk 0:02:59]} 2. Nf3 {[%clk 0:03:00]}  d6 {[%clk 0:02:59]} 3. d4 {[%clk 0:02:59]}  cxd4 {[%clk 0:03:00]} 4. Nxd4 {[%clk 0:03:00]}  Nf6 {[%clk 0:03:00]} 5. Nc3 {[%clk 0:03:01]}  a6 {[%clk 0:03:00]} 6. Bc4 {[%clk 0:03:01]}  e6 {[%clk 0:02:59]} 7. O-O {[%clk 0:03:01]}  b5 {[%clk 0:02:58]} 8. Bb3 {[%clk 0:03:01]}  Bb7 {[%clk 0:02:57]} 9. Re1 {[%clk 0:02:59]}  Nbd7 {[%clk 0:02:56]} 10. a4 {[%clk 0:02:59]}  b4 {[%clk 0:02:53]} 11. Nd5 {[%clk 0:02:58]}  Nxd5 {[%clk 0:01:52]} 12. exd5 {[%clk 0:02:59]}  e5 {[%clk 0:01:50]} 13. Nc6 {[%clk 0:02:45]}  Bxc6 {[%clk 0:01:31]} 14. dxc6 {[%clk 0:02:44]}  Nc5 {[%clk 0:01:30]} 15. Bd5 {[%clk 0:02:18]}  Rc8 {[%clk 0:01:23]} 16. Qg4 {[%clk 0:02:01]}  h6 {[%clk 0:00:19]} 17. Be3 {[%clk 0:01:52]}  g5 {[%clk 0:00:18]} 18. Rad1 {[%clk 0:01:38]}  Bg7 {[%clk 0:00:18]} 19. Bxc5 {[%clk 0:01:34]}  O-O {[%clk 0:00:16]} 20. Bxb4 {[%clk 0:01:30]}  Qf6 {[%clk 0:00:15]} 21. Be4 {[%clk 0:01:24]}  Kh8 {[%clk 0:00:15]} 22. Rxd6 {[%clk 0:01:20]}  Qxd6 {[%clk 0:00:14]} 23. Bxd6 {[%clk 0:01:19]} 1-0


[Site "https://www.chess.com"]

[Event "Titled Tuesday Blitz November 08 Early 2022"]
[White "Gronnestad, Anita"]
[Black "Cruz Mendez, Jean Marco"]
[WhiteFideId "1502972"]
[BlackFideId "3526402"]
[WhiteElo "1939"]
[BlackElo "2064"]
[Result "0-1"]
[Round "01"]
[TimeControl "180+1"]
[Date "2022.11.09"]
[WhiteClock "0:00:23"]
[BlackClock "0:01:06"]

1. d4 {[%clk 0:03:00]}  Nf6 {[%clk 0:02:49]} 2. c4 {[%clk 0:03:00]}  c5 {[%clk 0:02:47]} 3. d5 {[%clk 0:02:59]}  d6 {[%clk 0:02:46]} 4. Nc3 {[%clk 0:02:56]}  g6 {[%clk 0:02:45]} 5. e4 {[%clk 0:02:55]}  Bg7 {[%clk 0:02:45]} 6. f4 {[%clk 0:02:55]}  O-O {[%clk 0:02:45]} 7. h3 {[%clk 0:02:56]}  e6 {[%clk 0:02:45]} 8. Nf3 {[%clk 0:02:55]}  exd5 {[%clk 0:02:45]} 9. exd5 {[%clk 0:02:52]}  Na6 {[%clk 0:02:43]} 10. Be2 {[%clk 0:02:51]}  h5 {[%clk 0:02:35]} 11. O-O {[%clk 0:02:49]}  Bf5 {[%clk 0:02:34]} 12. a3 {[%clk 0:02:44]}  Nc7 {[%clk 0:02:32]} 13. b4 {[%clk 0:02:43]}  cxb4 {[%clk 0:02:21]} 14. axb4 {[%clk 0:02:44]}  a5 {[%clk 0:02:21]} 15. bxa5 {[%clk 0:02:34]}  Na6 {[%clk 0:02:21]} 16. Nd4 {[%clk 0:02:29]}  Bd7 {[%clk 0:02:17]} 17. f5 {[%clk 0:02:22]}  Nc5 {[%clk 0:02:14]} 18. fxg6 {[%clk 0:02:17]}  fxg6 {[%clk 0:02:15]} 19. Bg5 {[%clk 0:02:13]}  Rxa5 {[%clk 0:02:13]} 20. Rxa5 {[%clk 0:02:12]}  Qxa5 {[%clk 0:02:14]} 21. Ncb5 {[%clk 0:02:04]}  Qb6 {[%clk 0:01:59]} 22. Kh1 {[%clk 0:01:59]}  Bxb5 {[%clk 0:01:50]} 23. Nxb5 {[%clk 0:01:58]}  Nce4 {[%clk 0:01:49]} 24. Kh2 {[%clk 0:01:48]}  Ng4+ {[%clk 0:01:36]} 25. hxg4 {[%clk 0:01:36]}  Be5+ {[%clk 0:01:37]} 26. Kh3 {[%clk 0:01:29]}  Nxg5+ {[%clk 0:01:24]} 27. Kh4 {[%clk 0:01:26]}  Qe3 {[%clk 0:01:22]} 28. Rxf8+ {[%clk 0:00:59]}  Kxf8 {[%clk 0:01:23]} 29. Qf1+ {[%clk 0:00:54]}  Kg7 {[%clk 0:01:22]} 30. Qe1 {[%clk 0:00:46]}  Kh6 {[%clk 0:01:09]} 31. Nc7 {[%clk 0:00:30]}  Qh3+ {[%clk 0:01:05]} 32. gxh3 {[%clk 0:00:26]}  Nf3+ {[%clk 0:01:06]} 33. Bxf3 {[%clk 0:00:23]}  g5# {[%clk 0:01:06]} 0-1


[Site "https://www.chess.com"]

[Event "Titled Tuesday Blitz November 08 Early 2022"]
[White "Guimaraes, Wagner Peixoto"]
[Black "Kravtsiv, Martyn"]
[WhiteFideId "2100940"]
[BlackFideId "14113147"]
[WhiteElo "2231"]
[BlackElo "2694"]
[Result "0-1"]
[Round "01"]
[TimeControl "180+1"]
[Date "2022.11.09"]
[WhiteClock "0:00:24"]
[BlackClock "0:00:56"]

1. e4 {[%clk 0:03:00]}  e5 {[%clk 0:02:59]} 2. Nf3 {[%clk 0:02:58]}  Nc6 {[%clk 0:02:59]} 3. Bb5 {[%clk 0:02:48]}  a6 {[%clk 0:02:58]} 4. Ba4 {[%clk 0:02:46]}  Nf6 {[%clk 0:02:57]} 5. O-O {[%clk 0:02:42]}  Be7 {[%clk 0:02:56]} 6. Re1 {[%clk 0:02:36]}  b5 {[%clk 0:02:55]} 7. Bb3 {[%clk 0:02:36]}  O-O {[%clk 0:02:55]} 8. c3 {[%clk 0:02:31]}  d5 {[%clk 0:02:55]} 9. exd5 {[%clk 0:02:27]}  Nxd5 {[%clk 0:02:56]} 10. Nxe5 {[%clk 0:02:17]}  Nxe5 {[%clk 0:02:56]} 11. Rxe5 {[%clk 0:02:17]}  c6 {[%clk 0:02:55]} 12. d4 {[%clk 0:02:11]}  Bd6 {[%clk 0:02:54]} 13. Re1 {[%clk 0:02:05]}  Qh4 {[%clk 0:02:51]} 14. g3 {[%clk 0:02:02]}  Qh3 {[%clk 0:02:51]} 15. Be3 {[%clk 0:01:59]}  Bg4 {[%clk 0:02:51]} 16. Qd3 {[%clk 0:01:59]}  Rae8 {[%clk 0:02:50]} 17. Nd2 {[%clk 0:01:57]}  Re6 {[%clk 0:02:50]} 18. Qf1 {[%clk 0:01:44]}  Qh5 {[%clk 0:02:49]} 19. Bxd5 {[%clk 0:01:36]}  cxd5 {[%clk 0:02:17]} 20. f4 {[%clk 0:01:33]}  Rfe8 {[%clk 0:01:39]} 21. Bf2 {[%clk 0:01:21]}  Bh3 {[%clk 0:01:31]} 22. Qd3 {[%clk 0:01:16]}  Bf5 {[%clk 0:01:27]} 23. Qf3 {[%clk 0:01:13]}  Bg4 {[%clk 0:01:25]} 24. Qd3 {[%clk 0:01:10]}  Be2 {[%clk 0:01:20]} 25. Qc2 {[%clk 0:01:06]}  Rh6 {[%clk 0:01:16]} 26. h4 {[%clk 0:01:02]}  Bxf4 {[%clk 0:01:15]} 27. Nf1 {[%clk 0:00:52]}  Rg6 {[%clk 0:01:00]} 28. a4 {[%clk 0:00:41]}  Qf3 {[%clk 0:00:56]} 29. axb5 {[%clk 0:00:26]}  Bxg3 {[%clk 0:00:55]} 30. Nxg3 {[%clk 0:00:24]}  Rxg3+ {[%clk 0:00:55]} 31. Bxg3 {[%clk 0:00:24]}  Qxg3+ {[%clk 0:00:56]} 0-1


[Site "https://www.chess.com"]

[Event "Titled Tuesday Blitz November 08 Early 2022"]
[White "Hajiyev, Kanan"]
[Black "Shimanov, Aleksandr"]
[WhiteFideId "13404148"]
[BlackFideId "4198603"]
[WhiteElo "2118"]
[BlackElo "2605"]
[Result "0-1"]
[Round "01"]
[TimeControl "180+1"]
[Date "2022.11.09"]
[WhiteClock "0:00:06"]
[BlackClock "0:01:00"]

1. d4 {[%clk 0:02:48]}  Nf6 {[%clk 0:02:59]} 2. Nf3 {[%clk 0:02:48]}  g6 {[%clk 0:02:58]} 3. c4 {[%clk 0:02:48]}  Bg7 {[%clk 0:02:57]} 4. Nc3 {[%clk 0:02:49]}  O-O {[%clk 0:02:58]} 5. g3 {[%clk 0:02:49]}  d6 {[%clk 0:02:57]} 6. Bg2 {[%clk 0:02:50]}  Nc6 {[%clk 0:02:58]} 7. O-O {[%clk 0:02:50]}  e5 {[%clk 0:02:57]} 8. b3 {[%clk 0:02:50]}  Re8 {[%clk 0:02:35]} 9. e3 {[%clk 0:02:18]}  Bf5 {[%clk 0:02:23]} 10. Bb2 {[%clk 0:02:11]}  e4 {[%clk 0:02:20]} 11. Nd2 {[%clk 0:02:07]}  h5 {[%clk 0:02:19]} 12. a3 {[%clk 0:02:01]}  a5 {[%clk 0:02:19]} 13. Nb5 {[%clk 0:01:58]}  Na7 {[%clk 0:02:01]} 14. Nxa7 {[%clk 0:01:54]}  Rxa7 {[%clk 0:02:02]} 15. d5 {[%clk 0:01:54]}  Nd7 {[%clk 0:01:57]} 16. Bxg7 {[%clk 0:01:52]}  Kxg7 {[%clk 0:01:58]} 17. Qc2 {[%clk 0:01:51]}  Qe7 {[%clk 0:01:58]} 18. b4 {[%clk 0:01:47]}  Rea8 {[%clk 0:01:56]} 19. Rab1 {[%clk 0:00:54]}  axb4 {[%clk 0:01:54]} 20. axb4 {[%clk 0:00:55]}  Ra2 {[%clk 0:01:54]} 21. Rb2 {[%clk 0:00:55]}  Rxb2 {[%clk 0:01:46]} 22. Qxb2+ {[%clk 0:00:56]}  Qf6 {[%clk 0:01:46]} 23. Qc2 {[%clk 0:00:52]}  Re8 {[%clk 0:01:19]} 24. Bxe4 {[%clk 0:00:42]}  Bh3 {[%clk 0:01:07]} 25. Rc1 {[%clk 0:00:27]}  h4 {[%clk 0:01:06]} 26. Qc3 {[%clk 0:00:22]}  Ne5 {[%clk 0:01:06]} 27. f4 {[%clk 0:00:22]}  Ng4 {[%clk 0:01:05]} 28. Qxf6+ {[%clk 0:00:16]}  Nxf6 {[%clk 0:01:04]} 29. Bg2 {[%clk 0:00:13]}  Bxg2 {[%clk 0:01:03]} 30. Kxg2 {[%clk 0:00:14]}  Rxe3 {[%clk 0:01:04]} 31. Kf2 {[%clk 0:00:15]}  Ng4+ {[%clk 0:01:03]} 32. Kg1 {[%clk 0:00:07]}  h3 {[%clk 0:01:01]} 33. c5 {[%clk 0:00:06]}  Re2 {[%clk 0:01:00]} 34. Nf1 {[%clk 0:00:06]}  Rg2+ {[%clk 0:01:00]} 0-1


[Site "https://www.chess.com"]

[Event "Titled Tuesday Blitz November 08 Early 2022"]
[White "Harsh Suresh"]
[Black "Chernov, Mikhail"]
[WhiteFideId "45018464"]
[BlackFideId "24143170"]
[WhiteElo "2227"]
[BlackElo "2113"]
[Result "1/2-1/2"]
[Round "01"]
[TimeControl "180+1"]
[Date "2022.11.09"]
[WhiteClock "0:00:10"]
[BlackClock "0:00:05"]

1. d4 {[%clk 0:03:00]}  d5 {[%clk 0:02:59]} 2. c4 {[%clk 0:02:58]}  c6 {[%clk 0:02:59]} 3. Nf3 {[%clk 0:02:50]}  Nf6 {[%clk 0:02:59]} 4. Qc2 {[%clk 0:02:49]}  dxc4 {[%clk 0:02:58]} 5. Qxc4 {[%clk 0:02:47]}  b5 {[%clk 0:02:58]} 6. Qc2 {[%clk 0:02:46]}  Bb7 {[%clk 0:02:59]} 7. g3 {[%clk 0:02:44]}  Nbd7 {[%clk 0:03:00]} 8. Bg2 {[%clk 0:02:44]}  e6 {[%clk 0:03:00]} 9. O-O {[%clk 0:02:44]}  Be7 {[%clk 0:03:01]} 10. Bf4 {[%clk 0:02:41]}  O-O {[%clk 0:03:01]} 11. Ne5 {[%clk 0:02:40]}  Nxe5 {[%clk 0:02:56]} 12. Bxe5 {[%clk 0:02:39]}  Rc8 {[%clk 0:02:49]} 13. a4 {[%clk 0:02:34]}  a6 {[%clk 0:02:45]} 14. Nd2 {[%clk 0:02:20]}  Qb6 {[%clk 0:02:44]} 15. Ne4 {[%clk 0:02:08]}  Nxe4 {[%clk 0:02:37]} 16. Bxe4 {[%clk 0:02:07]}  h6 {[%clk 0:02:35]} 17. Rfc1 {[%clk 0:02:05]}  c5 {[%clk 0:02:31]} 18. Bxb7 {[%clk 0:01:59]}  Qxb7 {[%clk 0:02:31]} 19. Qd3 {[%clk 0:01:50]}  c4 {[%clk 0:02:11]} 20. Qc2 {[%clk 0:01:34]}  Rfd8 {[%clk 0:02:01]} 21. axb5 {[%clk 0:01:34]}  axb5 {[%clk 0:02:00]} 22. Rd1 {[%clk 0:01:21]}  b4 {[%clk 0:01:50]} 23. Bf4 {[%clk 0:01:11]}  c3 {[%clk 0:01:40]} 24. bxc3 {[%clk 0:01:07]}  bxc3 {[%clk 0:01:41]} 25. Rdb1 {[%clk 0:00:59]}  Qd5 {[%clk 0:01:34]} 26. Ra4 {[%clk 0:00:46]}  Rc4 {[%clk 0:01:21]} 27. Rxc4 {[%clk 0:00:30]}  Qxc4 {[%clk 0:01:22]} 28. Rb7 {[%clk 0:00:29]}  Bf6 {[%clk 0:01:09]} 29. e3 {[%clk 0:00:29]}  Ra8 {[%clk 0:00:35]} 30. Rc7 {[%clk 0:00:17]}  Ra1+ {[%clk 0:00:28]} 31. Kg2 {[%clk 0:00:17]}  Qd5+ {[%clk 0:00:27]} 32. e4 {[%clk 0:00:11]}  Qxd4 {[%clk 0:00:19]} 33. Rc8+ {[%clk 0:00:11]}  Kh7 {[%clk 0:00:09]} 34. e5+ {[%clk 0:00:11]}  g6 {[%clk 0:00:09]} 35. exf6 {[%clk 0:00:11]}  Qd5+ {[%clk 0:00:06]} 36. Kh3 {[%clk 0:00:11]}  Qh5+ {[%clk 0:00:03]} 37. Kg2 {[%clk 0:00:11]}  Qd5+ {[%clk 0:00:04]} 38. Kh3 {[%clk 0:00:09]}  Qh5+ {[%clk 0:00:04]} 39. Kg2 {[%clk 0:00:10]}  Qd5+ {[%clk 0:00:05]} 1/2-1/2


[Site "https://www.chess.com"]